{"text_format":"1","workbook":"xlsx","n_sheets":3,"sheets":["حساب ثاني","كشف","الناسخة "],"not_rendered":{"charts":0,"images":2,"macros":1,"external_links":3,"defined_names":41,"comments":0,"pivot_tables":0},"unopened":[],"bounds":{"document_bytes":16777216,"sheet_cells":100000,"rows_first":2000,"rows_last":500,"rows_between":2000,"halvings":0,"cell_chars":16384,"cell_head_chars":4096},"cells_cut":0,"cells_raw":0,"read":"whole","date_system":"1900"}

{"sheet":"حساب ثاني","index":0,"n_rows":42,"n_cols":11,"rows_kept":42,"cut":false,"hidden":false,"merged":[]}
["ت","اسم العاملة ","التاريخ","وجهة العمل ","وقت الخروج","وقت العودة","صافي  ساعات العمل","الرصيد ","المبلغ الوراد ","المبلغ الصادر ","ملاحظات "]
[null,null,null,null,"10:30:00","15:00:00",{"$f":"F2-E2","v":0.1875},{"$f":"J2-I2","v":0}]
[null,null,null,null,"10:30:00","11:30:00",{"$f":"F3-E3","v":4.1666666666666685E-2},{"$f":"H2+J3-I3","v":0}]
[null,null,null,null,null,null,0,{"$f":"H3+J4-I4","v":0}]
[null,null,null,null,null,null,0,0]
[null,null,null,null,null,null,0,0]
[null,null,null,null,null,null,0,0]
[null,null,null,null,null,null,0,0]
[null,null,null,null,null,null,0,0]
[null,null,null,null,null,null,0,0]
[null,null,null,null,null,null,0,0]
[null,null,null,null,null,null,0,0]
[null,null,null,null,null,null,0,0]
[null,null,null,null,null,null,0,0]
[null,null,null,null,null,null,0,{"$f":"H14+J15-I15","v":0}]
[null,null,null,null,null,null,0,0]
[null,null,null,null,null,null,0,0]
[null,null,null,null,null,null,0,0]
[null,null,null,null,null,null,0,0]
[null,null,null,null,null,null,0,0]
[null,null,null,null,null,null,0,0]
[null,null,null,null,null,null,0,0]
[null,null,null,null,null,null,0,0]
[null,null,null,null,null,null,0,0]
[null,null,null,null,null,null,0,0]
[null,null,null,null,null,null,0,0]
[null,null,null,null,null,null,0,0]
[null,null,null,null,null,null,0,0]
[null,null,null,null,null,null,0,0]
[null,null,null,null,null,null,0,0]
[null,null,null,null,null,null,0,0]
[null,null,null,null,null,null,0,0]
[null,null,null,null,null,null,0,0]
[null,null,null,null,null,null,0,0]
[null,null,null,null,null,null,0,0]
[null,null,null,null,null,null,0,0]
[null,null,null,null,null,null,0,0]
[null,null,null,null,null,null,0,0]
[null,null,null,null,null,null,null,0]
[null,null,null,null,null,null,null,0]
[null,null,null,null,null,null,null,0]
[null,null,null,null,null,null,null,0]

{"sheet":"كشف","index":1,"n_rows":44,"n_cols":11,"rows_kept":44,"cut":false,"hidden":false,"merged":[]}
["ت","اسم الزبون","مدين","دائن","الرصيد المدين ","الرصيد الدائن ","التبويب","الملاحظات",{"$f":"SUBTOTAL(9,C:C)","v":0},{"$f":"SUBTOTAL(9,D:D)","v":0},{"$f":"I1-J1","v":0}]
[null,"حساب ثاني"]
[null,"كشف 1"]
[null,"حساب ثاني"]
[]
[null,"حساب ثاني"]
[null,"ثالث"]
[null,"حساب ثاني"]
[null,"ثالث"]
[null,"رابع"]
[null,"حساب ثاني"]
[null,"الاول"]
[null,"حساب ثاني"]
[null,"الاول"]
[null,"حساب ثاني"]
[null,"الاول"]
[null,"حساب ثاني"]
[null,"الخامس"]
[null,"حساب ثاني"]
[null,"الرابع"]
[null,"حساب ثاني"]
[null,"الرابع"]
[null,"السابع"]
[null,"حساب ثاني"]
[null,"السادس"]
[null,"حساب ثاني"]
[null,"السادس"]
[null,"حساب ثاني"]
[null,"السادس"]
[null,"حساب ثاني"]
[null,"الثاني"]
[null,"حساب ثاني"]
[null,"الثاني"]
[null,"حساب ثاني"]
[null,"الاول"]
[null,"حساب ثاني"]
[null,"الاول"]
[null,"السادس"]
[null,"حساب ثاني"]
[null,"الاول"]
[null,"حساب ثاني"]
[null,"الاول"]
[null,"حساب ثاني"]
[null,"الاول"]

{"sheet":"الناسخة ","index":2,"n_rows":23,"n_cols":11,"rows_kept":23,"cut":false,"hidden":false,"merged":[]}
["ت","اسم العاملة ","التاريخ","وجهة العمل ","وقت الخروج","وقت العودة","صافي  ساعات العمل","الرصيد ","المبلغ الوراد ","المبلغ الصادر ","ملاحظات "]
[{"$f":"+IF(B2=\"\",\"\",SUBTOTAL(3,B2:B$2))","v":""},null,null,null,"10:30:00","15:00:00",{"$f":"F2-E2","v":0.1875},{"$f":"J2-I2","v":0}]
[{"$f":"+IF(B3=\"\",\"\",SUBTOTAL(3,B$2:B3))","v":""},null,null,null,"10:30:00","11:30:00",{"$f":"F3-E3","v":4.1666666666666685E-2},{"$f":"H2+J3-I3","v":0}]
[{"$f":"+IF(B4=\"\",\"\",SUBTOTAL(3,B$2:B4))","v":""},null,null,null,null,null,0,{"$f":"H3+J4-I4","v":0}]
[{"$f":"+IF(B5=\"\",\"\",SUBTOTAL(3,B$2:B5))","v":""},null,null,null,null,null,0,0]
[{"$f":"+IF(B6=\"\",\"\",SUBTOTAL(3,B$2:B6))","v":""},null,null,null,null,null,0,0]
[{"$f":"+IF(B7=\"\",\"\",SUBTOTAL(3,B$2:B7))","v":""},null,null,null,null,null,0,0]
[{"$f":"+IF(B8=\"\",\"\",SUBTOTAL(3,B$2:B8))","v":""},null,null,null,null,null,0,0]
[{"$f":"+IF(B9=\"\",\"\",SUBTOTAL(3,B$2:B9))","v":""},null,null,null,null,null,0,0]
[{"$f":"+IF(B10=\"\",\"\",SUBTOTAL(3,B$2:B10))","v":""},null,null,null,null,null,0,0]
[{"$f":"+IF(B11=\"\",\"\",SUBTOTAL(3,B$2:B11))","v":""},null,null,null,null,null,0,0]
[{"$f":"+IF(B12=\"\",\"\",SUBTOTAL(3,B$2:B12))","v":""},null,null,null,null,null,0,0]
[{"$f":"+IF(B13=\"\",\"\",SUBTOTAL(3,B$2:B13))","v":""},null,null,null,null,null,0,0]
[{"$f":"+IF(B14=\"\",\"\",SUBTOTAL(3,B$2:B14))","v":""},null,null,null,null,null,0,0]
[{"$f":"+IF(B15=\"\",\"\",SUBTOTAL(3,B$2:B15))","v":""},null,null,null,null,null,0,{"$f":"H14+J15-I15","v":0}]
[{"$f":"+IF(B16=\"\",\"\",SUBTOTAL(3,B$2:B16))","v":""},null,null,null,null,null,0,0]
[{"$f":"+IF(B17=\"\",\"\",SUBTOTAL(3,B$2:B17))","v":""},null,null,null,null,null,0,0]
[{"$f":"+IF(B18=\"\",\"\",SUBTOTAL(3,B$2:B18))","v":""},null,null,null,null,null,0,0]
[{"$f":"+IF(B19=\"\",\"\",SUBTOTAL(3,B$2:B19))","v":""},null,null,null,null,null,0,0]
[{"$f":"+IF(B20=\"\",\"\",SUBTOTAL(3,B$2:B20))","v":""}]
[{"$f":"+IF(B21=\"\",\"\",SUBTOTAL(3,B$2:B21))","v":""}]
[{"$f":"+IF(B22=\"\",\"\",SUBTOTAL(3,B$2:B22))","v":""}]
[{"$f":"+IF(B23=\"\",\"\",SUBTOTAL(3,B$2:B23))","v":""}]